[Event "Live Chess"]
[Site "Chess.com"]
[Date "2023.05.20"]
[Round "-"]
[White "smoggyrabbit"]
[Black "Horseymobile"]
[Result "1-0"]
[WhiteElo "1681"]
[BlackElo "1230"]
[TimeControl "300"]
[EndTime "13:37:08 PDT"]
[Termination "smoggyrabbit won by checkmate"]

1. d4 {[%clk 0:04:59]} 1... Nf6 {[%clk 0:04:58.1]} 2. Nf3 {[%clk 0:04:57.4]}
2... g6 {[%clk 0:04:57.4]} 3. e3 {[%clk 0:04:54]} 3... Bg7 {[%clk 0:04:56.2]} 4.
Be2 {[%clk 0:04:52.9]} 4... O-O {[%clk 0:04:55.5]} 5. O-O {[%clk 0:04:51.7]}
5... Nc6 {[%clk 0:04:53.2]} 6. b3 {[%clk 0:04:50.4]} 6... d6 {[%clk 0:04:48.1]}
7. Bb2 {[%clk 0:04:49.4]} 7... e6 {[%clk 0:04:23.2]} 8. c4 {[%clk 0:04:47.5]}
8... Bd7 {[%clk 0:04:14.6]} 9. Nbd2 {[%clk 0:04:44.8]} 9... Re8 {[%clk
0:03:46.9]} 10. e4 {[%clk 0:03:44.8]} 10... e5 {[%clk 0:03:36.4]} 11. d5 {[%clk
0:03:43.7]} 11... Ne7 {[%clk 0:03:35.3]} 12. Ne1 {[%clk 0:03:26.7]} 12... Bc8
{[%clk 0:03:04.7]} 13. f4 {[%clk 0:03:11.4]} 13... exf4 {[%clk 0:02:32.4]} 14.
Rxf4 {[%clk 0:03:07.7]} 14... Nd7 {[%clk 0:02:14.3]} 15. Bxg7 {[%clk 0:03:05.3]}
15... Kxg7 {[%clk 0:02:13.2]} 16. Bg4 {[%clk 0:03:00]} 16... Ne5 {[%clk
0:02:11.5]} 17. Bxc8 {[%clk 0:02:55]} 17... Rxc8 {[%clk 0:02:09.7]} 18. Nef3
{[%clk 0:02:50.8]} 18... Nd3 {[%clk 0:01:52.4]} 19. Rh4 {[%clk 0:02:21.5]} 19...
f5 {[%clk 0:01:37.2]} 20. Ng5 {[%clk 0:02:17.1]} 20... Ng8 {[%clk 0:01:13]} 21.
Rxh7+ {[%clk 0:01:19.5]} 21... Kf6 {[%clk 0:01:05.1]} 22. Ndf3 {[%clk
0:00:32.5]} 22... fxe4 {[%clk 0:00:40]} 23. Rf7# {[%clk 0:00:28.6]} 1-0

[Event "Live Chess"]
[Site "Chess.com"]
[Date "2023.05.20"]
[Round "-"]
[White "Bill0007"]
[Black "Greenbecker"]
[Result "0-1"]
[WhiteElo "1478"]
[BlackElo "1639"]
[TimeControl "300"]
[EndTime "13:37:12 PDT"]
[Termination "Greenbecker won by resignation"]

1. d4 {[%clk 0:04:58.8]} 1... d5 {[%clk 0:04:58.7]} 2. Nc3 {[%clk 0:04:57.2]}
2... Nf6 {[%clk 0:04:58.2]} 3. Bf4 {[%clk 0:04:55.6]} 3... c6 {[%clk 0:04:56]}
4. e3 {[%clk 0:04:53.4]} 4... Bf5 {[%clk 0:04:55]} 5. f3 {[%clk 0:04:51.9]} 5...
e6 {[%clk 0:04:53.6]} 6. g4 {[%clk 0:04:50.6]} 6... Bg6 {[%clk 0:04:52]} 7. h4
{[%clk 0:04:49.7]} 7... h5 {[%clk 0:04:50.3]} 8. g5 {[%clk 0:04:47.5]} 8... Nfd7
{[%clk 0:04:49.1]} 9. Nh3 {[%clk 0:04:39.2]} 9... c5 {[%clk 0:04:47.4]} 10. Ne2
{[%clk 0:04:34.1]} 10... cxd4 {[%clk 0:04:42.5]} 11. Nxd4 {[%clk 0:04:29.9]}
11... e5 {[%clk 0:04:39]} 12. Bg3 {[%clk 0:04:06.9]} 12... exd4 {[%clk
0:04:36.5]} 13. Qxd4 {[%clk 0:04:05.8]} 13... Qb6 {[%clk 0:04:14.5]} 14. O-O-O
{[%clk 0:03:56.5]} 14... Qxd4 {[%clk 0:04:12.4]} 15. Rxd4 {[%clk 0:03:53.9]}
15... Nb6 {[%clk 0:04:06.2]} 16. Bb5+ {[%clk 0:03:48.6]} 16... N8d7 {[%clk
0:04:04.2]} 17. Nf4 {[%clk 0:03:44.6]} 17... Bc5 {[%clk 0:03:58.3]} 18. Bxd7+
{[%clk 0:03:23.8]} 18... Kxd7 {[%clk 0:03:52.4]} 19. Rxd5+ {[%clk 0:03:22.4]}
19... Nxd5 {[%clk 0:03:50.9]} 20. Nxd5 {[%clk 0:03:17.9]} 20... Kc6 {[%clk
0:03:47.5]} 21. Rd1 {[%clk 0:03:13.4]} 21... Rad8 {[%clk 0:03:39]} 22. e4 {[%clk
0:03:11.8]} 22... Rhe8 {[%clk 0:03:24.8]} 23. b3 {[%clk 0:03:00.3]} 23... f5
{[%clk 0:03:13.2]} 24. gxf6 {[%clk 0:02:54.4]} 24... gxf6 {[%clk 0:03:09.3]} 25.
Nxf6 {[%clk 0:02:50.6]} 25... Be3+ {[%clk 0:03:05.9]} 0-1

[Event "Live Chess"]
[Site "Chess.com"]
[Date "2023.05.20"]
[Round "-"]
[White "howitzer14"]
[Black "Richardallis"]
[Result "1-0"]
[WhiteElo "2903"]
[BlackElo "1895"]
[TimeControl "300"]
[EndTime "13:37:22 PDT"]
[Termination "howitzer14 won by resignation"]

1. d4 {[%clk 0:04:48.6]} 1... c5 {[%clk 0:04:57.4]} 2. d5 {[%clk 0:04:47.3]}
2... d6 {[%clk 0:04:56.3]} 3. Nc3 {[%clk 0:04:46.3]} 3... e5 {[%clk 0:04:55.7]}
4. e4 {[%clk 0:04:45.5]} 4... a6 {[%clk 0:04:54.1]} 5. a4 {[%clk 0:04:44.2]}
5... Nf6 {[%clk 0:04:51.6]} 6. Nf3 {[%clk 0:04:42.6]} 6... Be7 {[%clk
0:04:50.5]} 7. Be2 {[%clk 0:04:40.4]} 7... O-O {[%clk 0:04:49.9]} 8. Nd2 {[%clk
0:04:33.8]} 8... Bd7 {[%clk 0:04:36.3]} 9. O-O {[%clk 0:04:08.5]} 9... h6 {[%clk
0:04:25.5]} 10. Nc4 {[%clk 0:04:02.8]} 10... b6 {[%clk 0:04:18.6]} 11. f4 {[%clk
0:03:59.6]} 11... exf4 {[%clk 0:04:13.9]} 12. Bxf4 {[%clk 0:03:59.5]} 12... Bc8
{[%clk 0:04:12]} 13. Kh1 {[%clk 0:03:52.2]} 13... Qc7 {[%clk 0:04:06.7]} 14. e5
{[%clk 0:03:45.9]} 1-0

[Event "Live Chess"]
[Site "Chess.com"]
[Date "2023.05.20"]
[Round "-"]
[White "ameetghasi100"]
[Black "Pablo_dmp"]
[Result "1-0"]
[WhiteElo "2686"]
[BlackElo "1881"]
[TimeControl "300"]
[EndTime "13:37:23 PDT"]
[Termination "ameetghasi100 won by resignation"]

1. e4 {[%clk 0:04:58.1]} 1... c6 {[%clk 0:04:58.8]} 2. Nf3 {[%clk 0:04:57.2]}
2... d5 {[%clk 0:04:58.4]} 3. Nc3 {[%clk 0:04:56.8]} 3... dxe4 {[%clk
0:04:54.9]} 4. Nxe4 {[%clk 0:04:56.7]} 4... Nf6 {[%clk 0:04:54.4]} 5. Bd3 {[%clk
0:04:54]} 5... Nbd7 {[%clk 0:04:44.5]} 6. Qe2 {[%clk 0:04:51.1]} 6... e6 {[%clk
0:04:43.5]} 7. Neg5 {[%clk 0:04:49.1]} 7... Bd6 {[%clk 0:04:34.7]} 8. Nxf7
{[%clk 0:04:43.2]} 8... Kxf7 {[%clk 0:04:34.6]} 9. Ng5+ {[%clk 0:04:42.3]} 9...
Kf8 {[%clk 0:04:29.8]} 10. Nxe6+ {[%clk 0:04:41.3]} 10... Ke7 {[%clk 0:04:26.4]}
11. Nxd8+ {[%clk 0:04:41.2]} 11... Kxd8 {[%clk 0:04:26.1]} 12. O-O {[%clk
0:04:39.5]} 12... h5 {[%clk 0:04:22.9]} 13. h3 {[%clk 0:04:36.3]} 13... Ne5
{[%clk 0:04:17.6]} 14. Qd1 {[%clk 0:04:31.3]} 14... Kc7 {[%clk 0:04:15.9]} 15.
Be2 {[%clk 0:04:29.4]} 15... g5 {[%clk 0:04:14]} 16. d4 {[%clk 0:04:27.4]} 16...
Ng6 {[%clk 0:04:10.3]} 17. Bxg5 {[%clk 0:04:25.1]} 17... Ne4 {[%clk 0:04:08.1]}
18. Be3 {[%clk 0:04:15.9]} 18... Be6 {[%clk 0:04:02.4]} 19. Bd3 {[%clk
0:04:13.3]} 19... Bd5 {[%clk 0:03:59.7]} 20. c4 {[%clk 0:04:12.4]} 1-0

[Event "Live Chess"]
[Site "Chess.com"]
[Date "2023.05.20"]
[Round "-"]
[White "Vitalii18a"]
[Black "Geomorph"]
[Result "0-1"]
[WhiteElo "1101"]
[BlackElo "1250"]
[TimeControl "300"]
[EndTime "13:37:24 PDT"]
[Termination "Geomorph won by checkmate"]

1. e4 {[%clk 0:04:58.4]} 1... e5 {[%clk 0:04:58.6]} 2. Nf3 {[%clk 0:04:56.7]}
2... Nc6 {[%clk 0:04:58]} 3. Bb5 {[%clk 0:04:54.5]} 3... Nf6 {[%clk 0:04:53.5]}
4. d3 {[%clk 0:04:52.6]} 4... d6 {[%clk 0:04:47.3]} 5. O-O {[%clk 0:04:50.5]}
5... Bd7 {[%clk 0:04:42.9]} 6. Re1 {[%clk 0:04:37.9]} 6... a6 {[%clk 0:04:41.4]}
7. Ba4 {[%clk 0:04:35.7]} 7... Be7 {[%clk 0:04:39.2]} 8. c3 {[%clk 0:04:34.3]}
8... O-O {[%clk 0:04:35.1]} 9. d4 {[%clk 0:04:33.1]} 9... exd4 {[%clk
0:04:32.6]} 10. cxd4 {[%clk 0:04:31.8]} 10... Qc8 {[%clk 0:04:27.5]} 11. Nc3
{[%clk 0:04:28.9]} 11... b5 {[%clk 0:03:52.9]} 12. Bc2 {[%clk 0:04:26.7]} 12...
Bg4 {[%clk 0:03:48.1]} 13. h3 {[%clk 0:04:23.7]} 13... Bd7 {[%clk 0:03:42.8]}
14. d5 {[%clk 0:04:20.5]} 14... Ne5 {[%clk 0:03:38.6]} 15. Nxe5 {[%clk
0:04:18.4]} 15... dxe5 {[%clk 0:03:37.8]} 16. f4 {[%clk 0:04:14.6]} 16... h6
{[%clk 0:03:34.8]} 17. fxe5 {[%clk 0:04:06.7]} 17... Nh7 {[%clk 0:03:31]} 18.
Qh5 {[%clk 0:03:41.8]} 18... Ng5 {[%clk 0:03:05.3]} 19. Re3 {[%clk 0:03:36.2]}
19... Bc5 {[%clk 0:03:01.6]} 20. h4 {[%clk 0:03:29]} 20... Bg4 {[%clk
0:02:44.9]} 21. Qxg4 {[%clk 0:02:35.6]} 21... Qxg4 {[%clk 0:02:42.7]} 22. hxg5
{[%clk 0:02:35.5]} 22... Qxg5 {[%clk 0:02:41.9]} 23. b4 {[%clk 0:02:22]} 23...
Bxe3+ {[%clk 0:02:40.3]} 24. Bxe3 {[%clk 0:02:20.4]} 24... Qxe3+ {[%clk
0:02:39.3]} 25. Kh2 {[%clk 0:02:18.8]} 25... Qxc3 {[%clk 0:02:38.3]} 26. Bb3
{[%clk 0:02:15.1]} 26... Qxa1 {[%clk 0:02:36.1]} 27. d6 {[%clk 0:02:09.1]} 27...
cxd6 {[%clk 0:02:33.2]} 28. exd6 {[%clk 0:02:08]} 28... Qe5+ {[%clk 0:02:31.3]}
29. Kg1 {[%clk 0:02:05.3]} 29... Qxd6 {[%clk 0:02:31.2]} 30. Bd5 {[%clk
0:02:02.4]} 30... Rac8 {[%clk 0:02:28.3]} 31. a3 {[%clk 0:01:59.5]} 31... Rc2
{[%clk 0:02:27.2]} 32. a4 {[%clk 0:01:57.4]} 32... bxa4 {[%clk 0:02:22.1]} 33.
b5 {[%clk 0:01:54.8]} 33... axb5 {[%clk 0:02:19.9]} 34. Bb7 {[%clk 0:01:49.6]}
34... Qd1+ {[%clk 0:02:14.9]} 35. Kh2 {[%clk 0:01:09.3]} 35... a3 {[%clk
0:02:12]} 36. e5 {[%clk 0:01:06]} 36... a2 {[%clk 0:02:07.9]} 37. Bf3 {[%clk
0:01:03.1]} 37... Qxf3 {[%clk 0:02:04.7]} 38. Kg1 {[%clk 0:00:58.2]} 38... a1=Q+
{[%clk 0:02:01.1]} 39. Kh2 {[%clk 0:00:57.5]} 39... Qxg2# {[%clk 0:02:00.7]} 0-1

[Event "Live Chess"]
[Site "Chess.com"]
[Date "2023.05.20"]
[Round "-"]
[White "flyingpuffins"]
[Black "Enhard"]
[Result "1-0"]
[WhiteElo "1953"]
[BlackElo "1463"]
[TimeControl "300"]
[EndTime "13:37:31 PDT"]
[Termination "flyingpuffins won on time"]

1. e4 {[%clk 0:04:58.6]} 1... c6 {[%clk 0:04:57.9]} 2. d4 {[%clk 0:04:57.2]}
2... d5 {[%clk 0:04:56.9]} 3. Nc3 {[%clk 0:04:56.8]} 3... Nf6 {[%clk 0:04:55.5]}
4. exd5 {[%clk 0:04:55.6]} 4... Nxd5 {[%clk 0:04:54.5]} 5. Nxd5 {[%clk
0:04:53.7]} 5... Qxd5 {[%clk 0:04:53.4]} 6. Nf3 {[%clk 0:04:52.2]} 6... Qd8
{[%clk 0:04:46.5]} 7. c4 {[%clk 0:04:48.7]} 7... Bf5 {[%clk 0:04:45.6]} 8. b3
{[%clk 0:04:44.9]} 8... e6 {[%clk 0:04:44.7]} 9. Bb2 {[%clk 0:04:42.9]} 9...
Bb4+ {[%clk 0:04:44.1]} 10. Nd2 {[%clk 0:04:40.6]} 10... Be7 {[%clk 0:04:41.8]}
11. Be2 {[%clk 0:04:39.7]} 11... O-O {[%clk 0:04:40.6]} 12. O-O {[%clk
0:04:38.7]} 12... Bf6 {[%clk 0:04:40.1]} 13. Nf3 {[%clk 0:04:33.5]} 13... h6
{[%clk 0:04:38.3]} 14. Ne5 {[%clk 0:04:32.8]} 14... Nd7 {[%clk 0:04:36.2]} 15.
Ba3 {[%clk 0:04:29]} 15... Re8 {[%clk 0:04:33.1]} 16. Ng4 {[%clk 0:04:25]} 16...
Bxg4 {[%clk 0:04:28.5]} 17. Bxg4 {[%clk 0:04:23.2]} 17... Be7 {[%clk 0:04:27.6]}
18. Bb2 {[%clk 0:04:21.7]} 18... Bf6 {[%clk 0:04:26.9]} 19. Bh5 {[%clk
0:04:16.2]} 19... Rf8 {[%clk 0:04:23.9]} 20. Qf3 {[%clk 0:04:11.7]} 20... b6
{[%clk 0:04:12.5]} 21. Rad1 {[%clk 0:04:10]} 21... Be7 {[%clk 0:03:59.5]} 22. d5
{[%clk 0:04:07.9]} 22... cxd5 {[%clk 0:03:58.2]} 23. cxd5 {[%clk 0:04:06.2]}
23... Bf6 {[%clk 0:03:46]} 24. Ba3 {[%clk 0:04:01.1]} 24... Be7 {[%clk
0:03:43.5]} 25. dxe6 {[%clk 0:03:50.4]} 25... fxe6 {[%clk 0:03:23.3]} 26. Qe4
{[%clk 0:03:34]} 26... Kh8 {[%clk 0:03:16.5]} 27. Bb2 {[%clk 0:03:28.4]} 27...
Bf6 {[%clk 0:03:14.6]} 28. Ba3 {[%clk 0:03:21.5]} 28... Be7 {[%clk 0:03:07.2]}
29. Bd6 {[%clk 0:03:20.5]} 29... Nf6 {[%clk 0:02:58.3]} 30. Bxe7 {[%clk
0:03:07.3]} 30... Qxe7 {[%clk 0:02:57.1]} 31. Qe5 {[%clk 0:02:58.3]} 31... Nxh5
{[%clk 0:02:53.6]} 32. Qxh5 {[%clk 0:02:58.2]} 32... Qf6 {[%clk 0:02:49.3]} 33.
Qe2 {[%clk 0:02:52.8]} 33... e5 {[%clk 0:02:44.2]} 34. Rd5 {[%clk 0:02:50]}
34... Rfe8 {[%clk 0:02:40.1]} 35. Qe4 {[%clk 0:02:46.7]} 35... Re7 {[%clk
0:02:31.8]} 36. Re1 {[%clk 0:02:44.6]} 36... Rf8 {[%clk 0:02:31.1]} 37. f3
{[%clk 0:02:42.9]} 37... Rfe8 {[%clk 0:02:08.5]} 38. a3 {[%clk 0:02:33]} 38...
a6 {[%clk 0:02:03.7]} 39. Qe2 {[%clk 0:02:29]} 39... Qc6 {[%clk 0:01:51.2]} 40.
Qe4 {[%clk 0:02:20.5]} 40... Qf6 {[%clk 0:01:44.9]} 41. Qc4 {[%clk 0:02:08.7]}
41... b5 {[%clk 0:01:38.9]} 42. Qe4 {[%clk 0:02:04.8]} 42... Qb6+ {[%clk
0:01:31.5]} 43. Qe3 {[%clk 0:01:59]} 43... Qc6 {[%clk 0:01:25.5]} 44. Qe4 {[%clk
0:01:51.6]} 44... Qc3 {[%clk 0:01:22.6]} 45. Rd3 {[%clk 0:01:46]} 45... Qc5+
{[%clk 0:01:14.1]} 46. Rde3 {[%clk 0:01:32]} 46... Qxa3 {[%clk 0:01:09.5]} 47.
Qg6 {[%clk 0:01:29.5]} 47... Qc5 {[%clk 0:01:04.9]} 48. Kf1 {[%clk 0:01:24.2]}
48... a5 {[%clk 0:00:59]} 49. Kf2 {[%clk 0:01:11.5]} 49... a4 {[%clk 0:00:54.4]}
50. bxa4 {[%clk 0:01:09.4]} 50... bxa4 {[%clk 0:00:53.1]} 51. Kg3 {[%clk
0:01:06.1]} 51... Qb4 {[%clk 0:00:48.5]} 52. Re4 {[%clk 0:01:04.1]} 52... Qc5
{[%clk 0:00:45.1]} 53. Rg4 {[%clk 0:00:58.1]} 53... a3 {[%clk 0:00:40.1]} 54.
Ra4 {[%clk 0:00:47.9]} 54... Qc3 {[%clk 0:00:34.4]} 55. Qe4 {[%clk 0:00:34.3]}
55... Qb3 {[%clk 0:00:29]} 56. Rb4 {[%clk 0:00:31.6]} 56... Qa2 {[%clk
0:00:20.4]} 57. Re2 {[%clk 0:00:29.6]} 57... Qa1 {[%clk 0:00:17.6]} 58. Rb1
{[%clk 0:00:26.6]} 58... Qc3 {[%clk 0:00:15.3]} 59. Re3 {[%clk 0:00:22.7]} 59...
Qc8 {[%clk 0:00:09.9]} 60. Rxa3 {[%clk 0:00:19.7]} 60... Qe6 {[%clk 0:00:04.3]}
61. Ra8 {[%clk 0:00:16.6]} 61... Rxa8 {[%clk 0:00:02.4]} 62. Qxa8+ {[%clk
0:00:15.7]} 62... Kh7 {[%clk 0:00:02.3]} 63. Rb8 {[%clk 0:00:15]} 63... Qg6+
{[%clk 0:00:01.4]} 64. Kf2 {[%clk 0:00:13.7]} 1-0

[Event "Live Chess"]
[Site "Chess.com"]
[Date "2023.05.20"]
[Round "-"]
[White "Brooms1989"]
[Black "friarnator"]
[Result "0-1"]
[WhiteElo "1018"]
[BlackElo "1979"]
[TimeControl "300"]
[EndTime "13:37:31 PDT"]
[Termination "friarnator won by checkmate"]

1. e4 {[%clk 0:04:56.8]} 1... Nf6 {[%clk 0:04:58.2]} 2. Nc3 {[%clk 0:04:54.8]}
2... e5 {[%clk 0:04:49.1]} 3. Nf3 {[%clk 0:04:53.1]} 3... Nc6 {[%clk 0:04:43]}
4. Bc4 {[%clk 0:04:51]} 4... h6 {[%clk 0:04:20.5]} 5. O-O {[%clk 0:04:47.3]}
5... d6 {[%clk 0:04:19.4]} 6. h3 {[%clk 0:04:45.5]} 6... g5 {[%clk 0:04:18.6]}
7. d3 {[%clk 0:04:28.2]} 7... g4 {[%clk 0:04:17.3]} 8. hxg4 {[%clk 0:04:25.7]}
8... Bxg4 {[%clk 0:04:17.2]} 9. Be3 {[%clk 0:04:13.1]} 9... Rg8 {[%clk
0:04:14.8]} 10. Nb1 {[%clk 0:03:53.5]} 10... Nh5 {[%clk 0:04:06.1]} 11. Nbd2
{[%clk 0:03:49.6]} 11... Nd4 {[%clk 0:03:58.5]} 12. Bxd4 {[%clk 0:03:42.3]}
12... exd4 {[%clk 0:03:57.1]} 13. c3 {[%clk 0:03:38.5]} 13... Bh3 {[%clk
0:03:49.7]} 14. Qa4+ {[%clk 0:03:20.5]} 14... c6 {[%clk 0:03:46.8]} 15. e5
{[%clk 0:03:08.2]} 15... Bxg2 {[%clk 0:03:41.4]} 16. Rfe1 {[%clk 0:03:03.1]}
16... Bxf3+ {[%clk 0:03:34.7]} 17. Kf1 {[%clk 0:02:58.5]} 17... d5 {[%clk
0:03:28.3]} 18. e6 {[%clk 0:02:48.8]} 18... fxe6 {[%clk 0:03:23]} 19. Nxf3
{[%clk 0:02:40.3]} 19... dxc4 {[%clk 0:03:18.9]} 20. Rxe6+ {[%clk 0:02:38.5]}
20... Kf7 {[%clk 0:03:17.1]} 21. Qxc4 {[%clk 0:02:37.4]} 21... Qd5 {[%clk
0:03:15.9]} 22. Ne5+ {[%clk 0:02:30]} 22... Kxe6 {[%clk 0:03:13.1]} 23. Qxd5+
{[%clk 0:02:27.1]} 23... cxd5 {[%clk 0:03:10.9]} 24. cxd4 {[%clk 0:02:27]} 24...
Bd6 {[%clk 0:03:07.9]} 25. Re1 {[%clk 0:02:25.3]} 25... Bxe5 {[%clk 0:03:07]}
26. Rxe5+ {[%clk 0:02:24.3]} 26... Kf6 {[%clk 0:03:05.9]} 27. Rxh5 {[%clk
0:02:23.1]} 27... Rg6 {[%clk 0:03:04.8]} 28. Rxd5 {[%clk 0:02:21.6]} 28... Re8
{[%clk 0:03:03.8]} 29. Rd6+ {[%clk 0:02:19]} 29... Re6 {[%clk 0:03:02.9]} 30.
Rd8 {[%clk 0:02:15.8]} 30... h5 {[%clk 0:03:00.4]} 31. Rf8+ {[%clk 0:02:14.4]}
31... Kg5 {[%clk 0:02:59.5]} 32. f4+ {[%clk 0:02:11.4]} 32... Kg4 {[%clk
0:02:53.9]} 33. Kg2 {[%clk 0:02:02.5]} 33... Re2+ {[%clk 0:02:49.7]} 34. Kh1
{[%clk 0:02:00.3]} 34... Kg3 {[%clk 0:02:46.9]} 35. f5 {[%clk 0:01:54.7]} 35...
Re1# {[%clk 0:02:45.5]} 0-1

[Event "Live Chess"]
[Site "Chess.com"]
[Date "2023.05.20"]
[Round "-"]
[White "mightysmasher"]
[Black "YrrriKharkiv"]
[Result "0-1"]
[WhiteElo "2088"]
[BlackElo "2071"]
[TimeControl "300"]
[EndTime "13:37:36 PDT"]
[Termination "YrrriKharkiv won by checkmate"]

1. e4 {[%clk 0:04:58.4]} 1... e6 {[%clk 0:04:53.7]} 2. d4 {[%clk 0:04:56.4]}
2... d5 {[%clk 0:04:53.3]} 3. exd5 {[%clk 0:04:55.5]} 3... exd5 {[%clk
0:04:52.2]} 4. Nf3 {[%clk 0:04:55.1]} 4... Bd6 {[%clk 0:04:51.6]} 5. Bd3 {[%clk
0:04:54.6]} 5... Ne7 {[%clk 0:04:50.9]} 6. O-O {[%clk 0:04:54.2]} 6... Nd7
{[%clk 0:04:50.3]} 7. c3 {[%clk 0:04:52.3]} 7... O-O {[%clk 0:04:48.5]} 8. Bxh7+
{[%clk 0:04:50.6]} 8... Kxh7 {[%clk 0:04:47.1]} 9. Ng5+ {[%clk 0:04:49.9]} 9...
Kg6 {[%clk 0:04:46.7]} 10. Qg4 {[%clk 0:04:48.8]} 10... Nf6 {[%clk 0:04:46.3]}
11. Qe2 {[%clk 0:04:44.3]} 11... Rh8 {[%clk 0:04:35.6]} 12. g3 {[%clk
0:04:41.3]} 12... Bf5 {[%clk 0:04:16.8]} 13. h4 {[%clk 0:04:37.6]} 13... Qd7
{[%clk 0:04:15.1]} 14. f4 {[%clk 0:04:35.4]} 14... Ne4 {[%clk 0:04:08.2]} 15.
Nxe4 {[%clk 0:04:32.1]} 15... Bxe4 {[%clk 0:04:06.7]} 16. Nd2 {[%clk 0:04:31.5]}
16... Bf5 {[%clk 0:04:01]} 17. Nf3 {[%clk 0:04:29.1]} 17... f6 {[%clk
0:04:00.5]} 18. Nh2 {[%clk 0:04:26.8]} 18... Rae8 {[%clk 0:03:56.2]} 19. Be3
{[%clk 0:04:25.5]} 19... Bh3 {[%clk 0:03:51.6]} 20. Rfe1 {[%clk 0:04:22.5]}
20... Nf5 {[%clk 0:03:50.6]} 21. Qf2 {[%clk 0:04:21.7]} 21... Nxe3 {[%clk
0:03:45.9]} 22. Rxe3 {[%clk 0:04:20.2]} 22... Rxe3 {[%clk 0:03:45]} 23. Qxe3
{[%clk 0:04:18.7]} 23... Re8 {[%clk 0:03:44.4]} 24. Qf2 {[%clk 0:04:18.1]} 24...
Qe6 {[%clk 0:03:32.1]} 25. Nf3 {[%clk 0:04:09.9]} 25... Bg4 {[%clk 0:03:27.4]}
26. Nh2 {[%clk 0:04:01.5]} 26... Bh3 {[%clk 0:03:26.5]} 27. Nf3 {[%clk
0:03:59.9]} 27... Bg4 {[%clk 0:03:21.5]} 28. Nh2 {[%clk 0:03:55.9]} 28... Qd7
{[%clk 0:03:20.4]} 29. Rf1 {[%clk 0:03:50.6]} 29... Qf5 {[%clk 0:03:14.6]} 30.
Re1 {[%clk 0:03:47.4]} 30... Rxe1+ {[%clk 0:03:12.4]} 31. Qxe1 {[%clk
0:03:46.7]} 31... Qe6 {[%clk 0:03:11.2]} 32. Qf2 {[%clk 0:03:43.2]} 32... Bf5
{[%clk 0:03:07.4]} 33. Qd2 {[%clk 0:03:33.8]} 33... Qe4 {[%clk 0:03:03.3]} 34.
Qf2 {[%clk 0:03:32.2]} 34... Qb1+ {[%clk 0:02:58.6]} 35. Kg2 {[%clk 0:03:31.2]}
35... Be4+ {[%clk 0:02:57.4]} 36. Kh3 {[%clk 0:03:30.3]} 36... Bf5+ {[%clk
0:02:55.6]} 37. g4 {[%clk 0:03:29]} 37... Qd3+ {[%clk 0:02:52.2]} 38. Kg2 {[%clk
0:03:27.2]} 38... Be4+ {[%clk 0:02:49.1]} 39. Kg1 {[%clk 0:03:26.4]} 39... Qd1+
{[%clk 0:02:46.8]} 40. Nf1 {[%clk 0:03:25.3]} 40... Qxg4+ {[%clk 0:02:45.7]} 41.
Ng3 {[%clk 0:03:22.4]} 41... Bxf4 {[%clk 0:02:40.7]} 42. Kh2 {[%clk 0:03:21.8]}
42... Qxg3+ {[%clk 0:02:38.4]} 43. Qxg3+ {[%clk 0:03:19.9]} 43... Bxg3+ {[%clk
0:02:38.1]} 44. Kxg3 {[%clk 0:03:14.1]} 44... Kf5 {[%clk 0:02:37.6]} 45. b3
{[%clk 0:03:11.8]} 45... Bc2 {[%clk 0:02:36.2]} 46. b4 {[%clk 0:03:10.2]} 46...
Bd1 {[%clk 0:02:34.3]} 47. a3 {[%clk 0:03:08.4]} 47... g5 {[%clk 0:02:33.8]} 48.
hxg5 {[%clk 0:03:04]} 48... fxg5 {[%clk 0:02:33.3]} 49. Kf2 {[%clk 0:03:03.1]}
49... Ke4 {[%clk 0:02:32.2]} 50. Ke1 {[%clk 0:03:02.7]} 50... Bg4 {[%clk
0:02:31.2]} 51. Kf2 {[%clk 0:03:01.4]} 51... Bd7 {[%clk 0:02:30.2]} 52. Kg3
{[%clk 0:03:00.4]} 52... Kd3 {[%clk 0:02:29.3]} 53. Kf2 {[%clk 0:02:59.6]} 53...
Kxc3 {[%clk 0:02:28.3]} 54. Kg3 {[%clk 0:02:58.8]} 54... Kxd4 {[%clk 0:02:27.8]}
55. Kf3 {[%clk 0:02:58]} 55... Kc4 {[%clk 0:02:27.2]} 56. Kg3 {[%clk 0:02:57]}
56... Kb3 {[%clk 0:02:26.4]} 57. b5 {[%clk 0:02:53.8]} 57... d4 {[%clk
0:02:25.6]} 58. Kf2 {[%clk 0:02:52.3]} 58... d3 {[%clk 0:02:24.8]} 59. Ke1
{[%clk 0:02:49.5]} 59... Kc2 {[%clk 0:02:24.3]} 60. b6 {[%clk 0:02:48.3]} 60...
d2+ {[%clk 0:02:23.7]} 61. Kf2 {[%clk 0:02:46.6]} 61... axb6 {[%clk 0:02:21.2]}
62. a4 {[%clk 0:02:43.7]} 62... d1=Q {[%clk 0:02:20.5]} 63. a5 {[%clk 0:02:43]}
63... Qd2+ {[%clk 0:02:20.1]} 64. Kg3 {[%clk 0:02:41.7]} 64... Qe3+ {[%clk
0:02:18.8]} 65. Kg2 {[%clk 0:02:40.6]} 65... Bc6+ {[%clk 0:02:16.9]} 66. Kh2
{[%clk 0:02:39.6]} 66... g4 {[%clk 0:02:15.8]} 67. a6 {[%clk 0:02:37.6]} 67...
Qh3+ {[%clk 0:02:14.4]} 68. Kg1 {[%clk 0:02:36.5]} 68... g3 {[%clk 0:02:13.4]}
69. axb7 {[%clk 0:02:35.1]} 69... Qh2+ {[%clk 0:02:13]} 70. Kf1 {[%clk 0:02:34]}
70... Qf2# {[%clk 0:02:12.6]} 0-1